[Event "Titled Tuesday Blitz June 15 2021"]
[White "Manafov, Vugar"]
[Black "Hansen, Eric"]
[WhiteFideId "13410814"]
[BlackFideId "2606771"]
[WhiteElo "2274"]
[BlackElo "2568"]
[Result "0-1"]
[Round "07"]
[TimeControl "180+1"]
[Date "2021.06.15"]
[WhiteClock "0:00:06"]
[BlackClock "0:00:05"]

1. Nf3 {[%clk 0:03:00]}  d5 {[%clk 0:02:54]} 2. g3 {[%clk 0:03:00]}  g6 {[%clk 0:02:54]} 3. Bg2 {[%clk 0:03:01]}  Bg7 {[%clk 0:02:55]} 4. O-O {[%clk 0:03:01]}  e5 {[%clk 0:02:51]} 5. d3 {[%clk 0:03:02]}  Ne7 {[%clk 0:02:51]} 6. e4 {[%clk 0:03:01]}  O-O {[%clk 0:02:51]} 7. Nc3 {[%clk 0:03:01]}  dxe4 {[%clk 0:02:42]} 8. dxe4 {[%clk 0:03:00]}  Nbc6 {[%clk 0:02:38]} 9. Be3 {[%clk 0:02:55]}  Nd4 {[%clk 0:02:36]} 10. Bxd4 {[%clk 0:02:41]}  exd4 {[%clk 0:02:37]} 11. Ne2 {[%clk 0:02:42]}  c5 {[%clk 0:02:34]} 12. Ne1 {[%clk 0:02:41]}  f5 {[%clk 0:02:09]} 13. Nf4 {[%clk 0:02:04]}  Qd6 {[%clk 0:02:06]} 14. Qe2 {[%clk 0:01:47]}  Kh8 {[%clk 0:01:54]} 15. b3 {[%clk 0:01:40]}  Bd7 {[%clk 0:01:41]} 16. Ned3 {[%clk 0:01:37]}  fxe4 {[%clk 0:01:32]} 17. Qxe4 {[%clk 0:01:37]}  b6 {[%clk 0:01:23]} 18. Rae1 {[%clk 0:01:32]}  Rae8 {[%clk 0:01:14]} 19. Ne6 {[%clk 0:01:31]}  Nf5 {[%clk 0:01:08]} 20. Ndf4 {[%clk 0:01:25]}  Re7 {[%clk 0:00:42]} 21. Bh3 {[%clk 0:00:42]}  Rfe8 {[%clk 0:00:37]} 22. Bxf5 {[%clk 0:00:13]}  gxf5 {[%clk 0:00:37]} 23. Qxf5 {[%clk 0:00:13]}  Bxe6 {[%clk 0:00:37]} 24. Qg5 {[%clk 0:00:11]}  Bf7 {[%clk 0:00:32]} 25. Rxe7 {[%clk 0:00:10]}  Qxe7 {[%clk 0:00:31]} 26. Qg4 {[%clk 0:00:10]}  Bh6 {[%clk 0:00:25]} 27. Nd3 {[%clk 0:00:08]}  Qf6 {[%clk 0:00:19]} 28. Qd7 {[%clk 0:00:05]}  Re7 {[%clk 0:00:15]} 29. Qd8+ {[%clk 0:00:05]}  Kg7 {[%clk 0:00:15]} 30. h4 {[%clk 0:00:05]}  Bg6 {[%clk 0:00:10]} 31. Nb2 {[%clk 0:00:04]}  Bxc2 {[%clk 0:00:10]} 32. Nc4 {[%clk 0:00:05]}  Bd3 {[%clk 0:00:09]} 33. Rd1 {[%clk 0:00:02]}  Bxc4 {[%clk 0:00:08]} 34. bxc4 {[%clk 0:00:03]}  Rf7 {[%clk 0:00:08]} 35. Qxf6+ {[%clk 0:00:03]}  Kxf6 {[%clk 0:00:08]} 36. Rf1 {[%clk 0:00:04]}  Kf5 {[%clk 0:00:07]} 37. Kg2 {[%clk 0:00:05]}  d3 {[%clk 0:00:06]} 38. Kf3 {[%clk 0:00:06]}  Re7 {[%clk 0:00:06]} 39. Rd1 {[%clk 0:00:06]}  Rd7 {[%clk 0:00:05]} 40. g4+ {[%clk 0:00:06]}  Ke5 {[%clk 0:00:05]} 41. g5 {[%clk 0:00:07]}  Bg7 {[%clk 0:00:05]} 42. Ke3 {[%clk 0:00:08]}  Kf5 {[%clk 0:00:05]} 43. f4 {[%clk 0:00:07]}  Bd4+ {[%clk 0:00:03]} 44. Kf3 {[%clk 0:00:06]}  Bc3 {[%clk 0:00:04]} 45. h5 {[%clk 0:00:06]}  d2 {[%clk 0:00:03]} 46. a4 {[%clk 0:00:06]}  Re7 {[%clk 0:00:04]} 47. g6 {[%clk 0:00:06]}  hxg6 {[%clk 0:00:04]} 48. h6 {[%clk 0:00:06]}  Re1 {[%clk 0:00:05]} 0-1


[Site "https://www.chess.com"]

[Event "Titled Tuesday Blitz June 15 2021"]
[White "Morefield, Jason"]
[Black "Dinu, Dumitru-Daniel"]
[WhiteFideId "30920825"]
[BlackFideId "1208403"]
[WhiteElo "2171"]
[BlackElo "2240"]
[Result "1-0"]
[Round "07"]
[TimeControl "180+1"]
[Date "2021.06.15"]
[WhiteClock "0:00:56"]
[BlackClock "0:00:11"]

1. d4 {[%clk 0:03:00]}  Nf6 {[%clk 0:02:58]} 2. c4 {[%clk 0:03:01]}  c5 {[%clk 0:02:58]} 3. d5 {[%clk 0:03:01]}  b5 {[%clk 0:02:58]} 4. cxb5 {[%clk 0:03:02]}  a6 {[%clk 0:02:57]} 5. bxa6 {[%clk 0:02:57]}  g6 {[%clk 0:02:56]} 6. Nc3 {[%clk 0:02:58]}  Bg7 {[%clk 0:02:56]} 7. e4 {[%clk 0:02:58]}  O-O {[%clk 0:02:55]} 8. Bc4 {[%clk 0:02:54]}  Bxa6 {[%clk 0:02:53]} 9. Bxa6 {[%clk 0:02:53]}  Nxa6 {[%clk 0:02:54]} 10. Nf3 {[%clk 0:02:52]}  Nb4 {[%clk 0:02:51]} 11. O-O {[%clk 0:02:51]}  d6 {[%clk 0:02:42]} 12. Bd2 {[%clk 0:02:45]}  Nd7 {[%clk 0:02:39]} 13. a4 {[%clk 0:02:43]}  Nd3 {[%clk 0:02:35]} 14. b3 {[%clk 0:02:41]}  c4 {[%clk 0:02:19]} 15. bxc4 {[%clk 0:02:39]}  N7c5 {[%clk 0:02:18]} 16. a5 {[%clk 0:02:35]}  Nb2 {[%clk 0:02:16]} 17. Qe2 {[%clk 0:02:31]}  Rxa5 {[%clk 0:02:10]} 18. Rxa5 {[%clk 0:02:26]}  Qxa5 {[%clk 0:02:09]} 19. Nd1 {[%clk 0:02:24]}  Qa4 {[%clk 0:01:54]} 20. Nxb2 {[%clk 0:02:20]}  Bxb2 {[%clk 0:01:53]} 21. Bh6 {[%clk 0:02:17]}  Bg7 {[%clk 0:01:53]} 22. Bxg7 {[%clk 0:02:17]}  Kxg7 {[%clk 0:01:53]} 23. e5 {[%clk 0:02:17]}  Rb8 {[%clk 0:01:41]} 24. h4 {[%clk 0:02:12]}  h5 {[%clk 0:01:40]} 25. Ng5 {[%clk 0:02:11]}  Qa6 {[%clk 0:01:08]} 26. Re1 {[%clk 0:01:58]}  Rb7 {[%clk 0:01:00]} 27. Qf3 {[%clk 0:01:47]}  f6 {[%clk 0:00:55]} 28. exf6+ {[%clk 0:01:46]}  exf6 {[%clk 0:00:55]} 29. Ne6+ {[%clk 0:01:47]}  Nxe6 {[%clk 0:00:55]} 30. Rxe6 {[%clk 0:01:48]}  Qa1+ {[%clk 0:00:50]} 31. Kh2 {[%clk 0:01:47]}  Qd4 {[%clk 0:00:49]} 32. Re4 {[%clk 0:01:43]}  Qa1 {[%clk 0:00:46]} 33. Qe3 {[%clk 0:01:40]}  Qa7 {[%clk 0:00:33]} 34. Qe2 {[%clk 0:01:31]}  Rc7 {[%clk 0:00:29]} 35. Re6 {[%clk 0:01:29]}  Rd7 {[%clk 0:00:25]} 36. Qb2 {[%clk 0:01:27]}  Rf7 {[%clk 0:00:24]} 37. Kg1 {[%clk 0:01:18]}  Qc7 {[%clk 0:00:19]} 38. Qb4 {[%clk 0:01:15]}  Rd7 {[%clk 0:00:18]} 39. Qc3 {[%clk 0:01:15]}  Rf7 {[%clk 0:00:18]} 40. Qd4 {[%clk 0:01:15]}  Qd7 {[%clk 0:00:16]} 41. Qf4 {[%clk 0:01:12]}  Qb7 {[%clk 0:00:14]} 42. Rxd6 {[%clk 0:01:10]}  Qc7 {[%clk 0:00:14]} 43. g3 {[%clk 0:01:06]}  Qc5 {[%clk 0:00:14]} 44. Rc6 {[%clk 0:01:06]}  Qb4 {[%clk 0:00:14]} 45. Rc7 {[%clk 0:01:01]}  Qb1+ {[%clk 0:00:13]} 46. Kh2 {[%clk 0:01:00]}  Qc2 {[%clk 0:00:13]} 47. Rxf7+ {[%clk 0:01:00]}  Kxf7 {[%clk 0:00:13]} 48. d6 {[%clk 0:00:59]}  Qd3 {[%clk 0:00:11]} 49. c5 {[%clk 0:00:59]}  Qd5 {[%clk 0:00:12]} 50. Qc1 {[%clk 0:00:57]}  Qc6 {[%clk 0:00:12]} 51. Qe3 {[%clk 0:00:57]}  Qd5 {[%clk 0:00:11]} 52. Qe7+ {[%clk 0:00:56]}  Kg8 {[%clk 0:00:11]} 53. d7 {[%clk 0:00:56]} 1-0


[Site "https://www.chess.com"]

[Event "Titled Tuesday Blitz June 15 2021"]
[White "Nesterov, Arseniy"]
[Black "Real De Azua, Ernesto"]
[WhiteFideId "24198455"]
[BlackFideId "108154"]
[WhiteElo "2441"]
[BlackElo "2476"]
[Result "1-0"]
[Round "07"]
[TimeControl "180+1"]
[Date "2021.06.15"]
[WhiteClock "0:00:04"]
[BlackClock "0:00:02"]

1. d4 {[%clk 0:03:00]}  Nf6 {[%clk 0:02:58]} 2. c4 {[%clk 0:03:01]}  e6 {[%clk 0:02:58]} 3. Nf3 {[%clk 0:03:01]}  d5 {[%clk 0:02:55]} 4. Nc3 {[%clk 0:03:01]}  Bb4 {[%clk 0:02:55]} 5. Qb3 {[%clk 0:03:00]}  c5 {[%clk 0:02:54]} 6. dxc5 {[%clk 0:03:01]}  Na6 {[%clk 0:02:54]} 7. cxd5 {[%clk 0:03:01]}  Qxd5 {[%clk 0:02:31]} 8. Qxb4 {[%clk 0:03:00]}  Nxb4 {[%clk 0:02:28]} 9. Nxd5 {[%clk 0:03:00]}  Nfxd5 {[%clk 0:02:04]} 10. Rb1 {[%clk 0:03:00]}  Nxa2 {[%clk 0:01:10]} 11. Bd2 {[%clk 0:02:59]}  b6 {[%clk 0:01:10]} 12. c6 {[%clk 0:01:59]}  Ba6 {[%clk 0:00:54]} 13. e4 {[%clk 0:01:48]}  Bxf1 {[%clk 0:00:54]} 14. Kxf1 {[%clk 0:01:42]}  Ndb4 {[%clk 0:00:54]} 15. Ra1 {[%clk 0:01:40]}  O-O-O {[%clk 0:00:46]} 16. Ke2 {[%clk 0:01:36]}  a5 {[%clk 0:00:34]} 17. Ne5 {[%clk 0:01:32]}  Rd4 {[%clk 0:00:24]} 18. f3 {[%clk 0:01:26]}  f6 {[%clk 0:00:23]} 19. Nd7 {[%clk 0:01:07]}  Kc7 {[%clk 0:00:18]} 20. Be3 {[%clk 0:01:05]}  Rd6 {[%clk 0:00:15]} 21. Nxb6 {[%clk 0:00:51]}  Rxc6 {[%clk 0:00:15]} 22. Rhd1 {[%clk 0:00:48]}  Rd8 {[%clk 0:00:06]} 23. Rxd8 {[%clk 0:00:44]}  Kxd8 {[%clk 0:00:06]} 24. Na4 {[%clk 0:00:44]}  Rc2+ {[%clk 0:00:06]} 25. Kf1 {[%clk 0:00:44]}  Kc7 {[%clk 0:00:03]} 26. Bb6+ {[%clk 0:00:38]}  Kc6 {[%clk 0:00:03]} 27. b3 {[%clk 0:00:20]}  Kb5 {[%clk 0:00:02]} 28. e5 {[%clk 0:00:16]}  fxe5 {[%clk 0:00:01]} 29. Re1 {[%clk 0:00:15]}  Nd3 {[%clk 0:00:02]} 30. Re3 {[%clk 0:00:13]}  Nac1 {[%clk 0:00:01]} 31. g3 {[%clk 0:00:10]}  Kc6 {[%clk 0:00:02]} 32. Bxa5 {[%clk 0:00:09]}  Rf2+ {[%clk 0:00:02]} 33. Kg1 {[%clk 0:00:09]}  Re2 {[%clk 0:00:02]} 34. Rxe2 {[%clk 0:00:09]}  Nxe2+ {[%clk 0:00:03]} 35. Kg2 {[%clk 0:00:10]}  Nd4 {[%clk 0:00:04]} 36. b4 {[%clk 0:00:09]}  Kb5 {[%clk 0:00:04]} 37. Nc3+ {[%clk 0:00:09]}  Kc4 {[%clk 0:00:05]} 38. Ne4 {[%clk 0:00:10]}  Nxb4 {[%clk 0:00:05]} 39. Bxb4 {[%clk 0:00:09]}  Kxb4 {[%clk 0:00:06]} 40. Nd6 {[%clk 0:00:10]}  Kc5 {[%clk 0:00:05]} 41. Ne8 {[%clk 0:00:10]}  g6 {[%clk 0:00:06]} 42. Nf6 {[%clk 0:00:11]}  h5 {[%clk 0:00:06]} 43. h4 {[%clk 0:00:05]}  Kd6 {[%clk 0:00:06]} 44. Ne4+ {[%clk 0:00:05]}  Ke7 {[%clk 0:00:06]} 45. Kf2 {[%clk 0:00:06]}  Nf5 {[%clk 0:00:06]} 46. Ng5 {[%clk 0:00:05]}  Kf6 {[%clk 0:00:05]} 47. Ne4+ {[%clk 0:00:05]}  Ke7 {[%clk 0:00:05]} 48. Nd2 {[%clk 0:00:06]}  Nd6 {[%clk 0:00:05]} 49. Ke3 {[%clk 0:00:05]}  Kf6 {[%clk 0:00:06]} 50. Ne4+ {[%clk 0:00:03]}  Nxe4 {[%clk 0:00:01]} 51. Kxe4 {[%clk 0:00:04]}  Kf7 {[%clk 0:00:01]} 52. Kxe5 {[%clk 0:00:05]}  Ke7 {[%clk 0:00:02]} 53. g4 {[%clk 0:00:03]}  Kf7 {[%clk 0:00:02]} 54. g5 {[%clk 0:00:03]}  Ke7 {[%clk 0:00:02]} 55. f4 {[%clk 0:00:04]}  Kf7 {[%clk 0:00:02]} 56. Kd6 {[%clk 0:00:04]} 1-0


[Site "https://www.chess.com"]

[Event "Titled Tuesday Blitz June 15 2021"]
[White "Obolentseva, Alexandra"]
[Black "Tejedor Fuente, Enrique"]
[WhiteFideId "24153648"]
[BlackFideId "2299100"]
[WhiteElo "2113"]
[BlackElo "2535"]
[Result "0-1"]
[Round "07"]
[TimeControl "180+1"]
[Date "2021.06.15"]
[WhiteClock "0:00:32"]
[BlackClock "0:00:08"]

1. d4 {[%clk 0:03:00]}  e5 {[%clk 0:02:56]} 2. dxe5 {[%clk 0:02:59]}  Nc6 {[%clk 0:02:56]} 3. Bf4 {[%clk 0:02:58]}  Qe7 {[%clk 0:02:52]} 4. Nc3 {[%clk 0:02:36]}  Qb4 {[%clk 0:02:40]} 5. Qd2 {[%clk 0:02:25]}  Qxb2 {[%clk 0:02:08]} 6. Rb1 {[%clk 0:02:22]}  Qa3 {[%clk 0:02:08]} 7. Nd5 {[%clk 0:02:10]}  Qxa2 {[%clk 0:02:04]} 8. Rd1 {[%clk 0:01:55]}  Kd8 {[%clk 0:01:50]} 9. e6 {[%clk 0:01:52]}  fxe6 {[%clk 0:01:45]} 10. Bxc7+ {[%clk 0:01:42]}  Ke8 {[%clk 0:01:37]} 11. Ne3 {[%clk 0:01:20]}  Bb4 {[%clk 0:01:28]} 12. c3 {[%clk 0:01:19]}  Qxd2+ {[%clk 0:01:29]} 13. Kxd2 {[%clk 0:01:18]}  Bc5 {[%clk 0:01:28]} 14. Nf3 {[%clk 0:01:11]}  d6 {[%clk 0:01:17]} 15. Nc4 {[%clk 0:01:02]}  Ke7 {[%clk 0:00:57]} 16. e4 {[%clk 0:00:46]}  Nf6 {[%clk 0:00:17]} 17. e5 {[%clk 0:00:36]}  Ne4+ {[%clk 0:00:06]} 18. Kc2 {[%clk 0:00:36]}  d5 {[%clk 0:00:06]} 19. Nd6 {[%clk 0:00:35]}  Nxf2 {[%clk 0:00:06]} 20. Bb5 {[%clk 0:00:33]}  Nxh1 {[%clk 0:00:04]} 21. Rxh1 {[%clk 0:00:33]}  Bd7 {[%clk 0:00:03]} 22. Ng5 {[%clk 0:00:28]}  Rhf8 {[%clk 0:00:03]} 23. Nxb7 {[%clk 0:00:27]}  Rf2+ {[%clk 0:00:02]} 24. Kd3 {[%clk 0:00:26]}  Nxe5+ {[%clk 0:00:02]} 25. Bxe5 {[%clk 0:00:26]}  Bxb5+ {[%clk 0:00:01]} 26. c4 {[%clk 0:00:25]}  Bxc4+ {[%clk 0:00:02]} 27. Kc3 {[%clk 0:00:26]}  Rc8 {[%clk 0:00:01]} 28. Nxc5 {[%clk 0:00:25]}  Rxc5 {[%clk 0:00:01]} 29. Bd4 {[%clk 0:00:26]}  Rxg2 {[%clk 0:00:01]} 30. Bxc5+ {[%clk 0:00:26]}  Kf6 {[%clk 0:00:02]} 31. Nxh7+ {[%clk 0:00:26]}  Kg6 {[%clk 0:00:02]} 32. Nf8+ {[%clk 0:00:26]}  Kf7 {[%clk 0:00:02]} 33. Rf1+ {[%clk 0:00:27]}  Bxf1 {[%clk 0:00:02]} 34. Nxe6 {[%clk 0:00:27]}  Kxe6 {[%clk 0:00:02]} 35. Bxa7 {[%clk 0:00:28]}  Ke7 {[%clk 0:00:02]} 36. Bd4 {[%clk 0:00:28]}  Rg6 {[%clk 0:00:03]} 37. h4 {[%clk 0:00:28]}  Bc4 {[%clk 0:00:04]} 38. h5 {[%clk 0:00:28]}  Rg3+ {[%clk 0:00:04]} 39. Kb4 {[%clk 0:00:28]}  Rh3 {[%clk 0:00:05]} 40. Kc5 {[%clk 0:00:28]}  Rxh5 {[%clk 0:00:04]} 41. Bxg7 {[%clk 0:00:28]}  Bf1 {[%clk 0:00:05]} 42. Bd4 {[%clk 0:00:28]}  Ke6 {[%clk 0:00:06]} 43. Kc6 {[%clk 0:00:29]}  Bg2 {[%clk 0:00:07]} 44. Kc7 {[%clk 0:00:29]}  Kf5 {[%clk 0:00:08]} 45. Kc6 {[%clk 0:00:30]}  Ke4 {[%clk 0:00:08]} 46. Kc5 {[%clk 0:00:31]}  Rh4 {[%clk 0:00:08]} 47. Kd6 {[%clk 0:00:32]} 0-1


[Site "https://www.chess.com"]

[Event "Titled Tuesday Blitz June 15 2021"]
[White "Ozen, Bahadir"]
[Black "Sarana, Alexey"]
[WhiteFideId "6337058"]
[BlackFideId "24133795"]
[WhiteElo "2503"]
[BlackElo "2629"]
[Result "0-1"]
[Round "07"]
[TimeControl "180+1"]
[Date "2021.06.15"]
[WhiteClock "0:00:02"]
[BlackClock "0:00:47"]

1. Nf3 {[%clk 0:03:00]}  d5 {[%clk 0:02:43]} 2. e3 {[%clk 0:02:59]}  Nf6 {[%clk 0:02:37]} 3. c4 {[%clk 0:02:58]}  e6 {[%clk 0:02:36]} 4. Nc3 {[%clk 0:02:56]}  Bd6 {[%clk 0:02:34]} 5. b3 {[%clk 0:02:50]}  O-O {[%clk 0:02:34]} 6. Bb2 {[%clk 0:02:50]}  Nbd7 {[%clk 0:02:31]} 7. Be2 {[%clk 0:02:20]}  Re8 {[%clk 0:02:30]} 8. O-O {[%clk 0:02:18]}  b6 {[%clk 0:02:28]} 9. cxd5 {[%clk 0:02:13]}  exd5 {[%clk 0:02:28]} 10. Rc1 {[%clk 0:02:00]}  a6 {[%clk 0:02:25]} 11. Nd4 {[%clk 0:01:58]}  Bb7 {[%clk 0:02:25]} 12. Nf5 {[%clk 0:01:57]}  Bf8 {[%clk 0:02:25]} 13. d4 {[%clk 0:01:53]}  g6 {[%clk 0:02:23]} 14. Nh4 {[%clk 0:01:35]}  Bd6 {[%clk 0:02:21]} 15. Nf3 {[%clk 0:01:32]}  Qe7 {[%clk 0:02:19]} 16. g3 {[%clk 0:01:28]}  h5 {[%clk 0:02:18]} 17. Re1 {[%clk 0:01:28]}  Ng4 {[%clk 0:02:18]} 18. Bf1 {[%clk 0:01:21]}  Ndf6 {[%clk 0:02:17]} 19. Bg2 {[%clk 0:01:15]}  Rad8 {[%clk 0:02:01]} 20. Qc2 {[%clk 0:01:10]}  c5 {[%clk 0:02:00]} 21. dxc5 {[%clk 0:01:03]}  bxc5 {[%clk 0:02:01]} 22. Rcd1 {[%clk 0:01:04]}  Qe6 {[%clk 0:01:20]} 23. Ng5 {[%clk 0:01:02]}  Qe7 {[%clk 0:01:20]} 24. Nf3 {[%clk 0:01:02]}  Bb8 {[%clk 0:01:18]} 25. Ba3 {[%clk 0:01:02]}  Rc8 {[%clk 0:01:18]} 26. Qc1 {[%clk 0:00:46]}  Ba7 {[%clk 0:01:13]} 27. Qb2 {[%clk 0:00:43]}  Qe6 {[%clk 0:01:11]} 28. Rd2 {[%clk 0:00:37]}  Qf5 {[%clk 0:01:10]} 29. Nh4 {[%clk 0:00:37]}  Qe5 {[%clk 0:01:10]} 30. Nf3 {[%clk 0:00:33]}  Qf5 {[%clk 0:01:08]} 31. Nh4 {[%clk 0:00:33]}  Qe6 {[%clk 0:01:08]} 32. Nf3 {[%clk 0:00:32]}  d4 {[%clk 0:01:01]} 33. Nd1 {[%clk 0:00:32]}  Ne4 {[%clk 0:00:57]} 34. exd4 {[%clk 0:00:28]}  Nxd2 {[%clk 0:00:52]} 35. Rxe6 {[%clk 0:00:27]}  Nxf3+ {[%clk 0:00:52]} 36. Bxf3 {[%clk 0:00:26]}  Bxf3 {[%clk 0:00:53]} 37. Rxe8+ {[%clk 0:00:23]}  Rxe8 {[%clk 0:00:54]} 38. Ne3 {[%clk 0:00:16]}  cxd4 {[%clk 0:00:52]} 39. Nf1 {[%clk 0:00:09]}  d3 {[%clk 0:00:51]} 40. Ne3 {[%clk 0:00:03]}  Nxe3 {[%clk 0:00:48]} 41. Bb4 {[%clk 0:00:04]}  Ng4 {[%clk 0:00:47]} 42. Qh8+ {[%clk 0:00:02]} 0-1


[Site "https://www.chess.com"]

[Event "Titled Tuesday Blitz June 15 2021"]
[White "Palchuk, Andrii"]
[Black "Maly, Alexey"]
[WhiteFideId "14176688"]
[BlackFideId "14103184"]
[WhiteElo "2267"]
[BlackElo "2285"]
[Result "1-0"]
[Round "07"]
[TimeControl "180+1"]
[Date "2021.06.15"]
[WhiteClock "0:00:45"]
[BlackClock "0:00:02"]

1. d4 {[%clk 0:03:00]}  d5 {[%clk 0:02:58]} 2. Nf3 {[%clk 0:02:58]}  Nf6 {[%clk 0:02:57]} 3. c4 {[%clk 0:02:58]}  dxc4 {[%clk 0:02:58]} 4. e3 {[%clk 0:02:56]}  e6 {[%clk 0:02:58]} 5. Bxc4 {[%clk 0:02:56]}  a6 {[%clk 0:02:58]} 6. O-O {[%clk 0:02:55]}  b5 {[%clk 0:02:59]} 7. Bb3 {[%clk 0:02:55]}  Bb7 {[%clk 0:02:59]} 8. Nc3 {[%clk 0:02:56]}  Nbd7 {[%clk 0:02:59]} 9. Qe2 {[%clk 0:02:56]}  c5 {[%clk 0:02:58]} 10. Rd1 {[%clk 0:02:45]}  Qc7 {[%clk 0:02:56]} 11. Bd2 {[%clk 0:02:40]}  Be7 {[%clk 0:02:56]} 12. Rac1 {[%clk 0:02:40]}  O-O {[%clk 0:02:55]} 13. a3 {[%clk 0:02:21]}  Qb6 {[%clk 0:02:54]} 14. Bc2 {[%clk 0:02:10]}  Rac8 {[%clk 0:02:53]} 15. Bb1 {[%clk 0:02:09]}  Rfd8 {[%clk 0:02:52]} 16. Be1 {[%clk 0:02:00]}  h6 {[%clk 0:02:52]} 17. h3 {[%clk 0:01:57]}  Ba8 {[%clk 0:02:50]} 18. Ne5 {[%clk 0:01:51]}  cxd4 {[%clk 0:02:41]} 19. exd4 {[%clk 0:01:52]}  Nxe5 {[%clk 0:02:35]} 20. dxe5 {[%clk 0:01:52]}  Nd5 {[%clk 0:02:35]} 21. Ne4 {[%clk 0:01:43]}  Nf4 {[%clk 0:02:12]} 22. Qg4 {[%clk 0:01:43]}  Ng6 {[%clk 0:02:11]} 23. Bc3 {[%clk 0:01:33]}  Rxd1+ {[%clk 0:01:51]} 24. Rxd1 {[%clk 0:01:34]}  Rd8 {[%clk 0:01:51]} 25. Re1 {[%clk 0:01:29]}  Bd5 {[%clk 0:01:41]} 26. Nf6+ {[%clk 0:01:23]}  Bxf6 {[%clk 0:00:36]} 27. exf6 {[%clk 0:01:23]}  Qc7 {[%clk 0:00:25]} 28. fxg7 {[%clk 0:01:20]}  Qf4 {[%clk 0:00:22]} 29. Bxg6 {[%clk 0:01:01]}  Qxg4 {[%clk 0:00:21]} 30. Bxf7+ {[%clk 0:01:02]}  Kxf7 {[%clk 0:00:19]} 31. hxg4 {[%clk 0:01:03]}  Bb3 {[%clk 0:00:15]} 32. Kh2 {[%clk 0:01:00]}  Rd5 {[%clk 0:00:12]} 33. f3 {[%clk 0:00:59]}  a5 {[%clk 0:00:07]} 34. Re4 {[%clk 0:00:56]}  Kg8 {[%clk 0:00:04]} 35. Rf4 {[%clk 0:00:56]}  Rd8 {[%clk 0:00:03]} 36. Kg3 {[%clk 0:00:50]}  Bd5 {[%clk 0:00:03]} 37. Kh4 {[%clk 0:00:45]}  a4 {[%clk 0:00:02]} 38. Kh5 {[%clk 0:00:45]} 1-0


[Site "https://www.chess.com"]

[Event "Titled Tuesday Blitz June 15 2021"]
[White "Paravyan, David"]
[Black "Balakrishnan, Praveen"]
[WhiteFideId "4194985"]
[BlackFideId "2064871"]
[WhiteElo "2562"]
[BlackElo "2237"]
[Result "1-0"]
[Round "07"]
[TimeControl "180+1"]
[Date "2021.06.15"]
[WhiteClock "0:00:07"]
[BlackClock "0:00:05"]

1. e4 {[%clk 0:03:00]}  c5 {[%clk 0:02:54]} 2. Nf3 {[%clk 0:02:59]}  a6 {[%clk 0:02:52]} 3. g3 {[%clk 0:02:57]}  Nc6 {[%clk 0:02:50]} 4. Bg2 {[%clk 0:02:56]}  g6 {[%clk 0:02:50]} 5. c3 {[%clk 0:02:55]}  Bg7 {[%clk 0:02:43]} 6. d4 {[%clk 0:02:55]}  cxd4 {[%clk 0:02:44]} 7. cxd4 {[%clk 0:02:56]}  d6 {[%clk 0:02:40]} 8. Nc3 {[%clk 0:02:54]}  Bg4 {[%clk 0:02:38]} 9. Be3 {[%clk 0:02:54]}  Nf6 {[%clk 0:02:34]} 10. h3 {[%clk 0:02:54]}  Bxf3 {[%clk 0:02:29]} 11. Bxf3 {[%clk 0:02:55]}  e5 {[%clk 0:02:29]} 12. d5 {[%clk 0:02:42]}  Nd4 {[%clk 0:02:26]} 13. Bxd4 {[%clk 0:02:43]}  exd4 {[%clk 0:02:26]} 14. Qxd4 {[%clk 0:02:44]}  O-O {[%clk 0:02:19]} 15. O-O {[%clk 0:02:42]}  Nd7 {[%clk 0:02:19]} 16. Qb4 {[%clk 0:02:41]}  Nc5 {[%clk 0:02:16]} 17. Rfd1 {[%clk 0:02:31]}  Re8 {[%clk 0:02:13]} 18. a4 {[%clk 0:02:20]}  Rc8 {[%clk 0:01:47]} 19. a5 {[%clk 0:02:19]}  Rc7 {[%clk 0:01:45]} 20. Kg2 {[%clk 0:02:15]}  Rce7 {[%clk 0:01:42]} 21. Rac1 {[%clk 0:02:04]}  h5 {[%clk 0:01:40]} 22. h4 {[%clk 0:02:04]}  Bf6 {[%clk 0:01:28]} 23. Rc2 {[%clk 0:02:00]}  Kg7 {[%clk 0:01:18]} 24. Re2 {[%clk 0:01:59]}  Qd7 {[%clk 0:01:17]} 25. b3 {[%clk 0:01:50]}  Kg8 {[%clk 0:00:51]} 26. Na4 {[%clk 0:01:50]}  Nxa4 {[%clk 0:00:52]} 27. bxa4 {[%clk 0:01:49]}  Rc8 {[%clk 0:00:51]} 28. Rd3 {[%clk 0:01:39]}  Rc5 {[%clk 0:00:50]} 29. Kh2 {[%clk 0:01:30]}  Qc7 {[%clk 0:00:48]} 30. Bg2 {[%clk 0:01:29]}  Bc3 {[%clk 0:00:48]} 31. Qb3 {[%clk 0:01:24]}  Qxa5 {[%clk 0:00:45]} 32. f4 {[%clk 0:01:22]}  Qb4 {[%clk 0:00:37]} 33. Qxb4 {[%clk 0:01:12]}  Bxb4 {[%clk 0:00:37]} 34. e5 {[%clk 0:01:10]}  Rc1 {[%clk 0:00:34]} 35. Kh3 {[%clk 0:01:05]}  Kg7 {[%clk 0:00:32]} 36. g4 {[%clk 0:00:53]}  hxg4+ {[%clk 0:00:27]} 37. Kxg4 {[%clk 0:00:54]}  Rc4 {[%clk 0:00:28]} 38. Re4 {[%clk 0:00:38]}  Rxe4 {[%clk 0:00:21]} 39. Bxe4 {[%clk 0:00:39]}  dxe5 {[%clk 0:00:15]} 40. f5 {[%clk 0:00:37]}  Bd6 {[%clk 0:00:14]} 41. Rf3 {[%clk 0:00:35]}  gxf5+ {[%clk 0:00:11]} 42. Kxf5 {[%clk 0:00:36]}  Rc7 {[%clk 0:00:09]} 43. h5 {[%clk 0:00:32]}  Kh6 {[%clk 0:00:09]} 44. Kf6 {[%clk 0:00:28]}  Be7+ {[%clk 0:00:06]} 45. Kxf7 {[%clk 0:00:27]}  Kxh5 {[%clk 0:00:04]} 46. Ke6 {[%clk 0:00:25]}  Bb4 {[%clk 0:00:03]} 47. d6 {[%clk 0:00:24]}  Rc4 {[%clk 0:00:03]} 48. d7 {[%clk 0:00:21]}  Rd4 {[%clk 0:00:03]} 49. Bd5 {[%clk 0:00:21]}  Ba5 {[%clk 0:00:04]} 50. Rb3 {[%clk 0:00:08]}  b5 {[%clk 0:00:03]} 51. axb5 {[%clk 0:00:09]}  axb5 {[%clk 0:00:04]} 52. Rxb5 {[%clk 0:00:09]}  Bc7 {[%clk 0:00:04]} 53. Rb7 {[%clk 0:00:09]}  Ba5 {[%clk 0:00:05]} 54. Ra7 {[%clk 0:00:09]}  Bb6 {[%clk 0:00:05]} 55. Rb7 {[%clk 0:00:09]}  Ba5 {[%clk 0:00:05]} 56. Rb5 {[%clk 0:00:09]}  Bd8 {[%clk 0:00:05]} 57. Kxe5 {[%clk 0:00:10]}  Rd1 {[%clk 0:00:05]} 58. Bf3+ {[%clk 0:00:07]} 1-0


[Site "https://www.chess.com"]